fUST/lending_fUST_20251104
["ID","MTS","AMOUNT","RATE_DAILY","PERIOD"]
[392976765,1762190553777,9999.0,0.00021015,2]
[392976773,1762190866576,10000.0,0.00018,2]
[392976784,1762190916700,754.12230335,0.0002,120]
[392976785,1762190917081,1189.35870379,0.00037627,120]
[392976787,1762191009502,150.0,0.00020936,2]
[392976887,1762191038580,-300.0,0.00021999,2]
[392976889,1762191038591,-138.41934811,0.00021999,2]
[392976894,1762191038637,-161.58065189,0.00021999,2]
[392976896,1762191038649,-234.0,0.00021999,2]
[392976898,1762191038659,-300.0,0.00021999,2]
[392976900,1762191038670,-344.0,0.00021999,2]
[392976902,1762191038680,-1200.0,0.00021999,2]
[392976904,1762191038690,-500.0,0.00021999,2]
[392976906,1762191038700,-500.0,0.00021999,2]
[392976908,1762191038711,-500.0,0.00021999,2]
[392976910,1762191038721,-500.0,0.00021999,2]
[392976913,1762191038734,-500.0,0.00021999,2]
[392976914,1762191038743,-500.0,0.00021999,2]
[392976917,1762191038754,-55.48649303,0.00021999,2]
[392977523,1762191044503,-444.51350697,0.00021999,2]
[392977525,1762191044513,-500.0,0.00021999,2]
[392977527,1762191044522,-500.0,0.00021999,2]
[392977529,1762191044531,-536.5138319,0.00021999,2]
[392977531,1762191044541,-395.31371501,0.00021999,2]
[392977533,1762191044551,-500.0,0.00021999,2]
[392977535,1762191044560,-500.0,0.00021999,2]
[392977536,1762191044569,-275.51122613,0.00021999,2]
[392977540,1762191044642,-224.48877387,0.00021999,2]
[392977542,1762191044651,-450.65122613,0.00021999,2]
[392977578,1762191076732,150.0,0.00020944,2]
[392977579,1762191124604,501.51349675,0.00037627,120]
[392977580,1762191141119,150.0,0.0002088,2]
[392977581,1762191281781,1668.56627626,0.00021015,2]
[392977582,1762191334372,150.0,0.00020943,2]
[392977583,1762191339858,590.0,0.00037589,20]
[392977585,1762191357273,484.189964,0.00013699,2]
[392977586,1762191357510,484.189964,0.00020187,2]
[392977587,1762191424001,1000.0,0.00031,120]
[392977588,1762191457827,7161.89018845,0.00037589,20]
[392977589,1762191643518,1016.84,0.00032877,120]
[392977590,1762191664358,1000.0,0.00032877,120]
[392977591,1762191760277,2033.57216703,0.00032876,120]
[392977592,1762191864852,20919.2335446,0.00023288,30]
[392977593,1762191875900,664.995584,0.00020982,2]
[392977597,1762191961867,1295.71,0.00021015,2]
[392977598,1762192051223,5000.0,0.00021015,2]
[392977599,1762192073434,5000.0,0.00021015,2]
[392977600,1762192154899,5000.0,0.00021015,2]
[392977611,1762192178444,5000.0,0.00021015,2]
[392977612,1762192201448,5000.0,0.00021015,2]
[392977689,1762192232404,-160.0,0.00021415,2]
[392977690,1762192232414,-150.0,0.00021631,2]
[392977691,1762192232423,-500.45,0.000217,2]
[392977692,1762192232431,-64.3739084,0.00021771,2]
[392977724,1762192237750,-500.0,0.00021771,2]
[392977964,1762192240059,-4218.11974432,0.00021771,2]
[392977966,1762192240068,-1200.0,0.0002186,2]
[392977968,1762192240078,-637.09,0.00021861,10]
[392977970,1762192240087,-994.7,0.00021861,10]
[392977972,1762192240095,-828.92,0.00021861,10]
[392977974,1762192240104,-500.0,0.00021869,2]
[392977976,1762192240113,-500.0,0.00021869,2]
[392977978,1762192240122,-500.0,0.00021869,2]
[392977980,1762192240131,-500.0,0.00021869,2]
[392977982,1762192240139,-500.0,0.00021869,2]
[392977984,1762192240148,-500.0,0.00021869,2]
[392977986,1762192240157,-500.0,0.00021869,2]
[392977988,1762192240166,-500.0,0.00021869,2]
[392977990,1762192240176,-500.0,0.00021869,2]
[392977991,1762192240184,-500.0,0.00021869,2]
[392977993,1762192240193,-500.0,0.00021869,2]
[392977995,1762192240202,-500.0,0.00021869,2]
[392977998,1762192240212,-500.0,0.00021869,2]
[392978000,1762192240221,-500.0,0.00021869,2]
[392978010,1762192240302,-500.0,0.00021869,2]
[392978012,1762192240312,-500.0,0.00021869,2]
[392978014,1762192240321,-500.0,0.00021869,2]
[392978016,1762192240330,-500.0,0.00021869,2]
[392978018,1762192240339,-500.0,0.00021869,2]
[392978020,1762192240349,-500.0,0.00021869,2]
[392978022,1762192240358,-500.0,0.00021869,2]
[392978024,1762192240367,-500.0,0.00021869,2]
[392978026,1762192240375,-500.0,0.00021869,2]
[392978028,1762192240384,-500.0,0.00021869,2]
[392978030,1762192240393,-500.0,0.00021869,2]
[392978032,1762192240402,-500.0,0.00021869,2]
[392978034,1762192240411,-500.0,0.00021869,2]
[392978036,1762192240419,-500.0,0.00021869,2]
[392978038,1762192240428,-500.0,0.00021869,2]
[392978040,1762192240437,-500.0,0.00021869,2]
[392978042,1762192240445,-500.0,0.00021869,2]
[392978044,1762192240454,-500.0,0.00021869,2]
[392978046,1762192240463,-500.0,0.00021869,2]
[392978048,1762192240472,-500.0,0.00021869,2]
[392978050,1762192240481,-500.0,0.00021869,2]
[392978051,1762192240490,-500.0,0.00021869,2]
[392978054,1762192240499,-500.0,0.00021869,2]
[392978056,1762192240509,-500.0,0.00021869,2]
[392978058,1762192240518,-425.0,0.00021869,2]
[392978060,1762192240528,-500.0,0.00021869,2]
[392978062,1762192240536,-500.0,0.00021869,2]
[392978064,1762192240545,-500.0,0.00021869,2]
[392978066,1762192240555,-500.0,0.00021869,2]
[392978068,1762192240564,-500.0,0.00021869,2]
[392978070,1762192240573,-500.0,0.00021869,2]
[392978072,1762192240582,-500.0,0.00021869,2]
[392978074,1762192240591,-500.0,0.00021869,2]
[392978076,1762192240600,-500.0,0.00021869,2]
[392978078,1762192240609,-500.0,0.00021869,2]
[392978080,1762192240618,-500.0,0.00021869,2]
[392978082,1762192240628,-500.0,0.00021869,2]
[392978084,1762192240637,-353.07811109,0.00021869,2]
[392978086,1762192240646,-500.0,0.00021869,2]
[392978088,1762192240656,-500.0,0.00021869,2]
[392978090,1762192240666,-500.0,0.00021869,2]
[392978092,1762192240675,-500.0,0.00021869,2]
[392978094,1762192240684,-500.0,0.00021869,2]
[392978095,1762192240693,-500.0,0.00021869,2]
[392978097,1762192240702,-500.0,0.00021869,2]
[392978099,1762192240711,-500.0,0.00021869,2]
[392978102,1762192240721,-500.0,0.00021869,2]
[392978104,1762192240732,-500.0,0.00021869,2]
[392978106,1762192240741,-500.0,0.00021869,2]
[392978107,1762192240751,-500.0,0.00021869,2]
[392978110,1762192240761,-500.0,0.00021869,2]
[392978112,1762192240770,-174.43216945,0.00021869,2]
[392978113,1762192240780,-500.0,0.00021869,2]
[392978116,1762192240790,-500.0,0.00021869,2]
[392978117,1762192240799,-450.0,0.00021869,2]
[392978119,1762192240808,-500.0,0.00021869,2]
[392978121,1762192240817,-500.0,0.00021869,2]
[392978123,1762192240826,-500.0,0.00021869,2]
[392978125,1762192240835,-500.0,0.00021869,2]
[392978127,1762192240845,-500.0,0.00021869,2]
[392978130,1762192240855,-500.0,0.00021869,2]
[392978132,1762192240864,-500.0,0.00021869,2]
[392978134,1762192240874,-500.0,0.00021869,2]
[392978136,1762192240883,-500.0,0.00021869,2]
[392978138,1762192240896,-500.0,0.00021869,2]
[392978140,1762192240905,-500.0,0.00021869,2]
[392978142,1762192240914,-500.0,0.00021869,2]
[392978144,1762192240923,-500.0,0.00021869,2]
[392978146,1762192240933,-500.0,0.00021869,2]
[392978148,1762192240942,-500.0,0.00021869,2]
[392978150,1762192240951,-500.0,0.00021869,2]
[392978152,1762192240961,-500.0,0.00021869,2]
[392978154,1762192240971,-500.0,0.00021869,2]
[392978156,1762192240984,-500.0,0.00021869,2]
[392978159,1762192240996,-416.35922057,0.0002187,2]
[392978160,1762192241005,-300.0,0.0002187,2]
[392978163,1762192241015,-300.0,0.0002187,2]
[392978164,1762192241024,-300.0,0.0002187,2]
[392978166,1762192241032,-300.0,0.0002187,2]
[392978168,1762192241041,-300.0,0.0002187,2]
[392978170,1762192241051,-42937.00080837,0.00021871,2]
[392978173,1762192241064,-7062.99919163,0.00021871,2]
[392978175,1762192241073,-6072.68836296,0.00021872,2]
[392978176,1762192241081,-500.0,0.00021873,2]
[392978178,1762192241091,-500.0,0.00021873,2]
[392978180,1762192241100,-1200.0,0.00021878,2]
[392978182,1762192241109,-500.0,0.00021889,2]
[392978184,1762192241118,-638.72337059,0.00021973,2]
[392978186,1762192241127,-500.0,0.00021973,2]
[392978188,1762192241136,-500.0,0.00021973,2]
[392978190,1762192241145,-500.0,0.00021973,2]
[392978192,1762192241154,-500.0,0.00021973,2]
[392978194,1762192241165,-502.58822375,0.00021973,2]
[392978196,1762192241174,-500.0,0.00021973,2]
[392978198,1762192241183,-500.242094,0.00021973,2]
[392978200,1762192241193,-502.46055944,0.00021973,2]
[392978202,1762192241201,-504.88759824,0.00021973,2]
[392978205,1762192241211,-500.85035697,0.00021973,2]
[392978206,1762192241220,-493.13000846,0.00021973,2]
[392978208,1762192241230,-501.53145934,0.00021973,2]
[392978210,1762192241239,-176.25058984,0.00021973,2]
[392978212,1762192241248,-502.73643182,0.00021973,2]
[392978215,1762192241259,-505.063071,0.00021973,2]
[392978217,1762192241268,-502.50509684,0.00021973,2]
[392978219,1762192241278,-501.89871753,0.00021973,2]
[392978221,1762192241287,-530.88061363,0.00021973,2]
[392978223,1762192241296,-249.32,0.00021981,3]
[392978225,1762192241305,-747.96,0.00021981,3]
[392978227,1762192241314,-250.66,0.00021981,3]
[392978229,1762192241324,-500.0,0.00021989,2]
[392978230,1762192241333,-500.0,0.00021989,2]
[392978233,1762192241343,-751.98,0.0002199,3]
[392978235,1762192241352,-884.34296551,0.00021993,2]
[392978237,1762192241361,-500.0,0.00021993,2]
[392978239,1762192241370,-500.0,0.00021993,2]
[392978241,1762192241379,-500.0,0.00021993,2]
[392978243,1762192241388,-500.0,0.00021993,2]
[392978245,1762192241398,-500.0,0.00021994,2]
[392978247,1762192241407,-500.0,0.00021994,2]
[392978249,1762192241415,-500.0,0.00021994,2]
[392978257,1762192241424,-1000.0,0.00021995,2]
[392978259,1762192241493,-1000.0,0.00021995,2]
[392978261,1762192241502,-1000.0,0.00021995,2]
[392978263,1762192241511,-1000.0,0.00021995,2]
[392978265,1762192241522,-1000.0,0.00021995,2]
[392978267,1762192241531,-1000.0,0.00021995,2]
[392978269,1762192241540,-500.0,0.00021999,2]
[392978271,1762192241549,-1000.0,0.00021999,2]
[392978273,1762192241558,-1735.62387814,0.00022,5]
[392978275,1762192241567,-11980.67741031,0.00022,2]
[392979280,1762192266225,151.0,0.00037573,30]
[392979281,1762192266963,156.587,0.00037573,120]
[392979282,1762192267601,162.380719,0.00037573,120]
[392979283,1762192268191,168.3888056,0.00037573,90]
[392979284,1762192268838,174.61919141,0.00037573,31]
[392979285,1762192269636,181.08010149,0.00037573,30]
[392979286,1762192270241,187.78006525,0.00037573,60]
[392979287,1762192270851,194.72792766,0.00037573,20]
[392979288,1762192271476,201.93286099,0.00037573,20]
[392979289,1762192272081,209.40437684,0.00037573,20]
[392979290,1762192272703,217.15233878,0.00037573,20]
[392979291,1762192273389,225.18697532,0.00037573,20]
[392979292,1762192274021,233.51889341,0.00037573,20]
[392979293,1762192274635,242.15909246,0.00037573,20]
[392979294,1762192275283,251.11897888,0.00037573,20]
[392979295,1762192276435,260.4103811,0.00037573,20]
[392979296,1762192277077,270.0455652,0.00037573,20]
[392979297,1762192277717,280.03725112,0.00037573,20]
[392979298,1762192278372,290.39862941,0.00037573,20]
[392979299,1762192278936,290.39862941,0.00037573,20]
[392979300,1762192284593,6008.63663629,0.00032876,120]
[392979301,1762192329050,194.54662151,0.00037573,120]
[392979302,1762192513245,151.0,0.00037548,120]
[392979303,1762192514100,156.587,0.00037548,120]
[392979304,1762192514711,162.380719,0.00037548,120]
[392979305,1762192515445,168.3888056,0.00037548,120]
[392979306,1762192516061,174.61919141,0.00037548,120]
[392979307,1762192516768,181.08010149,0.00037548,120]
[392979308,1762192517409,187.78006525,0.00037548,120]
[392979309,1762192518104,194.72792766,0.00037548,120]
[392979310,1762192518732,201.93286099,0.00037548,120]
[392979311,1762192519395,209.40437684,0.00037548,120]
[392979312,1762192520211,217.15233878,0.00037548,120]
[392979313,1762192520867,225.18697532,0.00037548,120]
[392979314,1762192521688,233.51889341,0.00037548,120]
[392979315,1762192522393,242.15909246,0.00037548,120]
[392979316,1762192523172,251.11897888,0.00037548,120]
[392979317,1762192523787,260.4103811,0.00037548,120]
[392979318,1762192524407,270.0455652,0.00037548,120]
[392979319,1762192525036,280.03725112,0.00037548,120]
[392979320,1762192525627,290.39862941,0.00037548,120]
[392979321,1762192526235,290.39862941,0.00037548,120]
[392979322,1762192806511,151.0,0.00037568,120]
[392979323,1762192806691,151.0,0.00037568,120]
[392979324,1762192806798,151.0,0.00037568,120]
[392979325,1762192807122,151.0,0.00037568,120]
[392979326,1762192807343,151.0,0.00037568,120]
[392979327,1762192807492,151.0,0.00037568,120]
[392979328,1762192808064,216.96624316,0.00037568,120]
[392979329,1762192809560,414.0,0.00037568,120]
[392979330,1762192810116,151.0,0.00037568,120]
[392979331,1762192810226,1000.0,0.00037568,120]
[392979332,1762192810334,429.318,0.00037568,120]
[392979333,1762192810738,1000.0,0.00037568,120]
[392979334,1762192810919,445.202766,0.00037568,120]
[392979335,1762192811035,151.0,0.00037568,120]
[392979336,1762192811364,1000.0,0.00037568,120]
[392979337,1762192811572,151.0,0.00037568,120]
[392979338,1762192811734,461.67526834,0.00037568,120]
[392979339,1762192811845,151.0,0.00037568,120]
[392979340,1762192811980,1000.0,0.00037568,120]
[392979341,1762192812364,478.75725327,0.00037568,120]
[392979342,1762192812487,156.587,0.00037568,120]
[392979343,1762192812970,496.47127164,0.00037568,120]
[392979344,1762192813085,162.380719,0.00037568,120]
[392979345,1762192813710,514.84070869,0.00037568,120]
[392979346,1762192813818,168.3888056,0.00037568,120]
[392979347,1762192814274,174.61919141,0.00037568,120]
[392979348,1762192814387,514.84070869,0.00037568,120]
[392979349,1762192814902,181.08010149,0.00037568,120]
[392979350,1762192815507,187.78006525,0.00037568,120]
[392979351,1762192816114,194.72792766,0.00037568,120]
[392979352,1762192816767,201.93286099,0.00037568,120]
[392979353,1762192817432,209.40437684,0.00037568,120]
[392979354,1762192818089,217.15233878,0.00037568,120]
[392979355,1762192883176,14763.16597209,0.00037568,30]
[392979356,1762192904277,-685.0,0.00021573,2]
[392979360,1762192980838,5000.0,0.00021015,2]
[392979361,1762192988915,5000.0,0.00021015,2]
[392979362,1762193003696,522.24187057,0.00021015,2]
[392979363,1762193011716,1648.83723264,0.00021015,2]
[392979364,1762193102751,-190.3970847,0.00021357,2]
[392979365,1762193102772,-5055.46313758,0.00021566,2]
[392979366,1762193102795,-150.0,0.00021574,2]
[392979367,1762193102815,-330.0,0.00021575,2]
[392979368,1762193102838,-1060.13,0.00021657,10]
[392979369,1762193102857,-300.0,0.00021663,2]
[392979370,1762193102878,-500.0,0.00021664,2]
[392979371,1762193102899,-500.0,0.00021664,2]
[392979372,1762193102921,-500.0,0.00021664,2]
[392979373,1762193102940,-500.0,0.00021664,2]
[392979374,1762193102961,-500.0,0.00021664,2]
[392979375,1762193102980,-500.0,0.00021664,2]
[392979376,1762193103001,-500.0,0.00021664,2]
[392979377,1762193103035,-500.0,0.00021664,2]
[392979378,1762193103155,-500.0,0.00021664,2]
[392979379,1762193103178,-500.0,0.00021664,2]
[392979380,1762193103200,-500.0,0.00021664,2]
[392979381,1762193103226,-500.0,0.00021664,2]
[392979382,1762193103250,-500.0,0.00021664,2]
[392979383,1762193103280,-500.0,0.00021664,2]
[392979384,1762193103302,-500.0,0.00021664,2]
[392979385,1762193103324,-500.0,0.00021664,2]
[392979386,1762193103347,-500.0,0.00021664,2]
[392979387,1762193103370,-638.97858002,0.00021664,2]
[392979388,1762193103392,-500.0,0.00021664,2]
[392979390,1762193103413,-500.0,0.00021664,2]
[392979391,1762193103433,-500.0,0.00021664,2]
[392979392,1762193103455,-500.0,0.00021664,2]
[392979393,1762193103477,-500.0,0.00021664,2]
[392979394,1762193103498,-187.36321463,0.00021664,2]
[392979395,1762193103520,-500.0,0.00021664,2]
[392979396,1762193103542,-500.0,0.00021664,2]
[392979397,1762193103563,-500.0,0.00021664,2]
[392979398,1762193103585,-500.0,0.00021664,2]
[392979399,1762193103608,-500.0,0.00021664,2]
[392979400,1762193103630,-500.0,0.00021664,2]
[392979401,1762193103652,-500.0,0.00021664,2]
[392979402,1762193103675,-500.0,0.00021664,2]
[392979403,1762193103695,-500.0,0.00021664,2]
[392979404,1762193103718,-500.0,0.00021664,2]
[392979405,1762193103741,-500.0,0.00021664,2]
[392979406,1762193103762,-500.0,0.00021664,2]
[392979407,1762193103786,-500.0,0.00021664,2]
[392979408,1762193103809,-500.0,0.00021664,2]
[392979409,1762193103830,-500.0,0.00021664,2]
[392979410,1762193103851,-500.0,0.00021664,2]
[392979411,1762193103879,-500.0,0.00021664,2]
[392979412,1762193103903,-500.0,0.00021664,2]
[392979413,1762193103924,-500.0,0.00021664,2]
[392979414,1762193103946,-390.74808244,0.00021664,2]
[392979415,1762193103968,-500.0,0.00021664,2]
[392979416,1762193103990,-500.0,0.00021664,2]
[392979417,1762193104014,-500.0,0.00021664,2]
[392979418,1762193104035,-500.0,0.00021664,2]
[392979419,1762193104057,-500.0,0.00021664,2]
[392979420,1762193104078,-500.0,0.00021664,2]
[392979421,1762193104101,-500.0,0.00021664,2]
[392979422,1762193104121,-500.0,0.00021664,2]
[392979423,1762193104143,-500.0,0.00021664,2]
[392979424,1762193104165,-500.0,0.00021664,2]
[392979425,1762193104186,-500.0,0.00021664,2]
[392979426,1762193104210,-500.0,0.00021664,2]
[392979427,1762193104232,-500.0,0.00021664,2]
[392979428,1762193104255,-500.0,0.00021664,2]
[392979429,1762193104282,-500.0,0.00021664,2]
[392979430,1762193104304,-500.0,0.00021664,2]
[392979431,1762193104326,-500.0,0.00021664,2]
[392979432,1762193104348,-500.0,0.00021664,2]
[392979433,1762193104372,-500.0,0.00021664,2]
[392979434,1762193104394,-500.0,0.00021664,2]
[392979435,1762193104416,-500.0,0.00021664,2]
[392979436,1762193104437,-500.0,0.00021664,2]
[392979437,1762193104459,-500.0,0.00021664,2]
[392979438,1762193104480,-500.0,0.00021664,2]
[392979439,1762193104501,-500.0,0.00021664,2]
[392979440,1762193104527,-500.0,0.00021664,2]
[392979441,1762193104549,-500.0,0.00021664,2]
[392979442,1762193104571,-500.0,0.00021664,2]
[392979443,1762193104597,-500.0,0.00021664,2]
[392979444,1762193104618,-500.0,0.00021664,2]
[392979445,1762193104640,-500.0,0.00021664,2]
[392979446,1762193104662,-500.0,0.00021664,2]
[392979447,1762193104683,-500.0,0.00021664,2]
[392979448,1762193104705,-500.0,0.00021664,2]
[392979449,1762193104800,-500.0,0.00021664,2]
[392979450,1762193104824,-500.0,0.00021664,2]
[392979451,1762193104846,-500.0,0.00021664,2]
[392979452,1762193104870,-500.0,0.00021664,2]
[392979453,1762193104896,-500.0,0.00021664,2]
[392979454,1762193104917,-500.0,0.00021664,2]
[392979455,1762193104938,-500.0,0.00021664,2]
[392979456,1762193104959,-500.0,0.00021664,2]
[392979457,1762193104980,-500.0,0.00021664,2]
[392979458,1762193105002,-500.0,0.00021664,2]
[392979459,1762193105024,-616.7327419,0.00021664,2]
[392979460,1762193105045,-500.0,0.00021664,2]
[392979461,1762193105068,-500.0,0.00021664,2]
[392979462,1762193105088,-500.0,0.00021664,2]
[392979463,1762193105109,-500.0,0.00021664,2]
[392979464,1762193105130,-500.0,0.00021664,2]
[392979465,1762193105152,-500.0,0.00021664,2]
[392979466,1762193105174,-500.0,0.00021664,2]
[392979467,1762193105195,-500.0,0.00021664,2]
[392979468,1762193105220,-500.0,0.00021664,2]
[392979469,1762193105243,-500.0,0.00021664,2]
[392979470,1762193105271,-500.0,0.00021664,2]
[392979471,1762193105295,-500.0,0.00021664,2]
[392979472,1762193105317,-500.0,0.00021664,2]
[392979473,1762193105338,-500.0,0.00021664,2]
[392979474,1762193105360,-500.0,0.00021664,2]
[392979475,1762193105382,-500.0,0.00021664,2]
[392979476,1762193105406,-500.0,0.00021664,2]
[392979477,1762193105428,-500.0,0.00021664,2]
[392979478,1762193105451,-500.0,0.00021664,2]
[392979479,1762193105473,-500.0,0.00021664,2]
[392979480,1762193105494,-500.0,0.00021664,2]
[392979481,1762193105516,-500.0,0.00021664,2]
[392979482,1762193105538,-443.90638403,0.00021664,2]
[392979483,1762193105561,-500.0,0.00021664,2]
[392979484,1762193105581,-500.0,0.00021664,2]
[392979485,1762193105604,-500.0,0.00021664,2]
[392979486,1762193105625,-500.0,0.00021664,2]
[392979487,1762193105646,-500.0,0.00021664,2]
[392979488,1762193105667,-500.0,0.00021664,2]
[392979489,1762193105690,-500.0,0.00021664,2]
[392979490,1762193105712,-500.0,0.00021664,2]
[392979491,1762193105734,-500.0,0.00021664,2]
[392979492,1762193105757,-500.0,0.00021664,2]
[392979493,1762193105780,-500.0,0.00021664,2]
[392979494,1762193105802,-500.0,0.00021664,2]
[392979495,1762193105823,-500.0,0.00021664,2]
[392979496,1762193105843,-500.0,0.00021664,2]
[392979497,1762193105864,-500.0,0.00021664,2]
[392979498,1762193105886,-500.0,0.00021664,2]
[392979499,1762193105907,-500.0,0.00021664,2]
[392979500,1762193105928,-500.0,0.00021664,2]
[392979501,1762193105948,-500.0,0.00021664,2]
[392979502,1762193105968,-1200.0,0.00021665,2]
[392979503,1762193105989,-434.47740892,0.00021665,2]
[392979504,1762193106010,-178.187,0.00021667,2]
[392979505,1762193106071,500.0,0.00021664,2]
[392979506,1762193106100,500.0,0.00021664,2]
[392979507,1762193106130,500.0,0.00021664,2]
[392979508,1762193106155,208.87942227,0.00021664,2]
[392979509,1762193106185,500.0,0.00021664,2]
[392979510,1762193106214,500.0,0.00021664,2]
[392979511,1762193106240,500.0,0.00021664,2]
[392979512,1762193106337,500.0,0.00021664,2]
[392979513,1762193106369,500.0,0.00021664,2]
[392979514,1762193106398,500.0,0.00021664,2]
[392979515,1762193106437,187.48480162,0.00021664,2]
[392979516,1762193106474,500.0,0.00021664,2]
[392979517,1762193106504,1200.0,0.00021663,2]
[392979518,1762193106532,300.0,0.00021663,2]
[392979519,1762193106571,300.0,0.00021663,2]
[392979520,1762193106596,300.0,0.00021663,2]
[392979521,1762193106637,883.44,0.00021657,10]
[392979522,1762193106799,300.0,0.00021663,2]
[392979523,1762193111800,164.95804354,0.00037475,120]
[392979524,1762193114867,5620.13629696,0.00021666,2]
[392979525,1762193116841,5620.13629695,0.00021667,2]
[392979526,1762193118855,5620.13629695,0.00021667,2]
[392979530,1762193151251,493.40325103,0.00021664,2]
[392979532,1762193216105,999.0,0.00020668,2]
[392979533,1762193229576,4200.0,0.00021,2]
[392979534,1762193243537,3937.9952004,0.00020669,2]
[392979535,1762193281059,329.05,0.00017721,2]
[392979539,1762193431994,-500.0,0.000216,2]
[392979540,1762193432004,-150.0,0.00021616,2]
[392979541,1762193432013,-891.32,0.00021658,10]
[392979542,1762193432022,-295.3044644,0.00021658,10]
[392979543,1762193432033,-447.4555356,0.00021658,10]
[392979544,1762193432045,-410.6731944,0.00021663,10]
[392979545,1762193433500,-27.21269888,0.00021663,10]
[392979546,1762193433572,-174.06410672,0.00021663,10]
[392979547,1762193433582,-300.0171495,0.00021664,2]
[392979571,1762193437840,-644.2207412,0.00021664,2]
[392979573,1762193437851,-89.63992212,0.00021664,2]
[392979578,1762193437895,-210.36007788,0.00021664,2]
[392979580,1762193437904,-300.0,0.00021664,2]
[392979582,1762193437915,-300.0,0.00021664,2]
[392979584,1762193437924,-918.78598496,0.00021664,2]
[392979587,1762193437936,-281.21401504,0.00021664,2]
[392979589,1762193437946,-300.0,0.00021664,2]
[392979591,1762193437956,-500.0,0.00021664,2]
[392979593,1762193437965,-500.0,0.00021664,2]
[392979595,1762193437975,-500.0,0.00021664,2]
[392979596,1762193437984,-500.0,0.00021664,2]
[392979598,1762193437993,-500.0,0.00021664,2]
[392979600,1762193438003,-500.0,0.00021664,2]
[392979602,1762193438012,-500.0,0.00021664,2]
[392979604,1762193438021,-500.0,0.00021664,2]
[392979606,1762193438031,-500.0,0.00021664,2]
[392979617,1762193438117,-500.0,0.00021664,2]
[392979619,1762193438137,-500.0,0.00021664,2]
[392979621,1762193438148,-500.0,0.00021664,2]
[392979623,1762193438159,-500.0,0.00021664,2]
[392979625,1762193438168,-262.61098496,0.00021664,2]
[392979628,1762193438182,-237.38901504,0.00021664,2]
[392979629,1762193438191,-309.32598496,0.00021664,2]
[392979633,1762193438214,-189.55709454,0.00021664,2]
[392979856,1762193440379,-1.1169205,0.00021664,2]
[392979858,1762193440388,-450.74808243,0.00021664,2]
[392979860,1762193440398,-500.0,0.00021664,2]
[392979862,1762193440407,-418.20364362,0.00021664,2]
[392979865,1762193440416,-509.970561,0.00021664,2]
[392979868,1762193440425,-359.62579245,0.00021664,2]
[392980145,1762193443126,-140.37420755,0.00021664,2]
[392980147,1762193443136,-359.62579245,0.00021664,2]
[392980150,1762193443147,-140.37420755,0.00021664,2]
[392980152,1762193443157,-500.0,0.00021664,2]
[392980154,1762193443167,-500.0,0.00021664,2]
[392980156,1762193443176,-500.0,0.00021664,2]
[392980158,1762193443185,-500.0,0.00021664,2]
[392980160,1762193443195,-536.96837932,0.00021664,2]